bitfinex-derivatives/quotes_ETHF0:USTF0_20250909
["timestamp","ask_amount","ask_price","bid_price","bid_amount"]
[1757446153954,5.19,4297.2,4297.1,0.233]
[1757446155356,5.19,4297.2,4296.6,2.08045818]
[1757446155558,0.23273001,4297.1,4296.7,0.234]
[1757446155759,4.85,4297.1,4296.7,0.234]
[1757446156150,4.85,4297.1,4296.8,0.234]
[1757446156560,5.08272,4297.1,4296.8,0.234]
[1757446156856,4.85,4297.1,4296.8,0.234]
[1757446157352,4.85,4297.1,4296.9,0.234]
[1757446157755,4.85,4297.1,4297.0,0.234]
[1757446159860,4.85,4297.1,4297.0,0.5798]
[1757446160162,4.85,4297.1,4297.0,0.234]
[1757446160762,4.85,4297.1,4297.0,0.5798]
[1757446161855,4.85,4297.1,4297.0,0.234]
[1757446162059,4.85,4297.1,4297.0,0.5798]
[1757446162256,4.85,4297.1,4297.0,0.7282]
[1757446162859,4.85,4297.1,4297.0,0.5798]
[1757446163260,4.85,4297.1,4297.0,0.234]
[1757446166968,4.85,4297.1,4297.0,0.233]
[1757446169970,4.85,4297.1,4296.7,0.3458]
[1757446170269,4.85,4297.1,4297.0,0.233]
[1757446173664,4.85,4297.1,4297.0,0.5788]
[1757446175262,4.85,4297.1,4297.0,0.233]
[1757446177563,4.85,4297.1,4297.0,0.5788]
[1757446178564,4.85,4297.1,4297.0,0.3458]
[1757446178970,4.85,4297.1,4296.9,0.233]
[1757446180273,4.85,4297.1,4297.0,0.3458]
[1757446180976,4.85,4297.1,4297.0,0.4942]
[1757446182071,4.85,4297.1,4297.0,0.7412]
[1757446182271,4.85,4297.1,4297.0,1.39157]
[1757446182870,4.85,4297.1,4297.0,4.59937]
[1757446184072,4.85,4297.1,4297.0,4.1805]
[1757446186268,4.85,4297.1,4297.0,4.59937]
[1757446186775,4.85,4297.1,4297.0,4.1805]
[1757446186963,4.85,4297.1,4297.0,4.59937]
[1757446187369,4.85,4297.1,4297.0,4.1805]
[1757446198875,4.85,4297.1,4297.0,4.59937]
[1757446200379,3.2078,4298.4,4297.1,0.3403]
[1757446200678,8.5678,4298.4,4297.2,0.24]
[1757446200877,8.80048,4298.4,4297.3,0.473]
[1757446201073,8.80048,4298.4,4297.5,0.1342]
[1757446201268,8.80048,4298.4,4297.6,0.5733]
[1757446201474,8.80048,4298.4,4297.7,0.3403]
[1757446201677,8.5678,4298.4,4297.8,0.233]
[1757446202781,8.5678,4298.4,4297.8,0.5733]
[1757446205583,8.5678,4298.4,4297.8,0.233]
[1757446205784,8.5678,4298.4,4297.9,0.3403]
[1757446206179,8.5678,4298.4,4297.8,0.233]
[1757446206388,8.5678,4298.4,4297.9,0.3403]
[1757446206585,8.5678,4298.4,4297.8,0.233]
[1757446207974,8.5678,4298.4,4297.9,0.3403]
[1757446208174,8.5678,4298.4,4297.8,0.233]
[1757446209178,0.56495017,4298.3,4297.9,0.3403]
[1757446209487,5.12,4298.3,4297.8,0.233]
[1757446210080,5.12,4298.3,4297.9,0.3403]
[1757446210481,5.12,4298.3,4297.8,0.233]
[1757446210683,5.12,4298.3,4297.9,0.3403]
[1757446210884,5.12,4298.3,4297.8,0.233]
[1757446211083,5.12,4298.3,4297.9,0.3403]
[1757446211284,5.12,4298.3,4297.8,0.233]
[1757446211686,5.12,4298.3,4298.0,0.1342]
[1757446211886,5.12,4298.3,4298.2,0.576]
[1757446212094,5.12,4298.3,4298.2,0.816]
[1757446214587,5.12,4298.3,4298.2,0.8133]
[1757446214787,5.12,4298.3,4298.2,0.3403]
[1757446214987,5.12,4298.3,4298.2,0.233]
[1757446215395,5.12,4298.3,4298.2,0.5733]
[1757446215693,5.12,4298.3,4298.2,0.233]
[1757446216897,5.12,4298.3,4298.2,0.584]
[1757446220095,5.12,4298.3,4298.2,0.8134]
[1757446220296,5.12,4298.3,4298.2,1.0387]
[1757446235616,8.3278,4298.3,4298.2,0.233]
[1757446237109,8.3278,4298.3,4298.2,0.584]
[1757446237918,5.12,4298.3,4298.2,0.8134]
[1757446238620,5.12,4298.3,4298.2,1.0387]
[1757446239821,5.12,4298.3,4298.2,0.8134]
[1757446240123,5.12,4298.3,4298.2,0.584]
[1757446242524,5.12,4298.3,4298.2,0.351]
[1757446242821,5.12,4298.3,4298.2,0.584]
[1757446244325,5.12,4298.3,4298.2,0.8134]
[1757446244626,5.12,4298.3,4298.2,1.0387]
[1757446260544,5.12,4298.3,4298.2,0.8134]
[1757446263436,5.12,4298.3,4298.0,3.3506]
[1757446263744,5.12,4298.3,4298.2,0.3312]
[1757446264247,5.12,4298.3,4298.2,0.5498]
[1757446267044,5.12,4298.3,4298.2,0.3312]
[1757446267446,0.16920001,4298.9,4298.8,0.2186]
[1757446267647,3.2078,4300.3,4299.6,0.3312]
[1757446267848,3.2078,4300.3,4300.1,0.3312]
[1757446268043,8.3678,4300.3,4300.2,0.46034838]
[1757446268242,9.16174342,4300.3,4300.2,0.52234838]
[1757446268446,8.60034001,4300.3,4300.2,0.52234838]
[1757446268957,8.3678,4300.3,4300.2,0.52234838]
[1757446271245,8.3678,4300.3,4300.2,0.28834838]
[1757446271442,12.83434001,4300.3,4300.2,0.28834838]
[1757446271646,12.83434001,4300.3,4299.1,37.049]
[1757446271647,13.38887234,4300.3,4299.6,0.233]
[1757446271847,0.55453233,4300.2,4299.7,0.28781002]
[1757446272047,3.2078,4299.8,4299.6,0.233]
[1757446272248,8.8278,4299.8,4299.7,0.28781049]
[1757446272453,12.8278,4299.8,4299.7,0.28781049]
[1757446276650,13.0608,4299.8,4299.7,0.28781049]
[1757446278755,13.61543967,4299.8,4299.3,0.00349024]
[1757446278955,0.55463967,4299.7,4299.4,0.28801083]
[1757446279158,0.234,4299.6,4299.5,0.28801083]
[1757446279456,5.60863967,4299.6,4299.5,0.28801083]
[1757446279757,5.60863967,4299.6,4299.5,0.28807626]
[1757446281158,5.054,4299.6,4299.5,0.28807626]
[1757446282558,5.60463792,4299.6,4299.5,0.28807626]
[1757446282758,5.054,4299.6,4299.5,0.28807626]
[1757446283361,5.60464288,4299.6,4299.5,0.28807626]
[1757446283763,5.054,4299.6,4299.5,0.28807626]
[1757446284258,4.82,4299.6,4299.5,0.28807626]
[1757446284456,5.60464744,4299.6,4299.5,0.65107626]
[1757446284663,5.054,4299.6,4299.5,0.65107626]
[1757446284861,4.82,4299.6,4299.5,0.65107626]
[1757446285062,4.82,4299.6,4299.5,0.78897626]
[1757446285655,4.82,4299.6,4299.5,1.02957626]
[1757446285857,4.82,4299.6,4299.5,1.26007626]
[1757446297165,4.82,4299.6,4299.5,1.26758163]
[1757446298459,4.82,4299.6,4299.5,0.79648163]
[1757446299776,4.82,4299.6,4299.5,0.65858163]
[1757446301382,4.82,4299.6,4299.5,0.79648163]
[1757446304777,4.82,4299.6,4299.5,1.03708163]
[1757446306881,4.82,4299.6,4299.5,0.79648163]
[1757446309878,4.82,4299.6,4299.5,1.25668163]
[1757446310081,4.82,4299.6,4299.5,1.02648163]
[1757446310882,4.82,4299.6,4299.5,1.25668163]
[1757446314388,5.37320337,4299.6,4299.5,1.25668163]
[1757446314686,5.37320337,4299.6,4299.5,0.9611]
[1757446316380,5.37320337,4299.6,4299.5,0.5009]
[1757446316978,5.37320337,4299.6,4299.3,0.00349024]
[1757446317184,0.78720337,4299.5,4299.3,0.00349024]
[1757446317485,0.55320337,4299.4,4299.3,0.00349024]
[1757446317790,6.26320337,4299.4,4299.3,0.00349024]
[1757446319879,6.39381074,4299.4,4299.3,0.00349024]
[1757446320889,6.39381074,4299.4,4299.3,0.34739024]
[1757446323994,6.39381074,4299.4,4299.3,0.80759024]
[1757446324178,5.84060737,4299.4,4299.3,0.80759024]
[1757446324385,5.84060737,4299.4,4299.3,0.34739024]
[1757446326186,5.84060737,4299.4,4299.3,0.57739024]
[1757446326390,5.84060737,4299.4,4299.3,0.80759024]
[1757446326783,5.71,4299.4,4299.3,0.80759024]
[1757446332893,5.71,4299.4,4299.3,0.00349024]
[1757446337998,5.71,4299.4,4299.3,0.34259024]
[1757446338296,5.71,4299.4,4299.3,0.57149024]
[1757446341005,5.71,4299.4,4299.3,0.80449024]
[1757446358812,5.71,4299.4,4299.3,0.57559024]
[1757446363213,5.71,4299.4,4299.3,0.80449024]
[1757446363513,5.71,4299.4,4299.3,0.57149024]
[1757446363714,5.71,4299.4,4299.3,1.02909024]
[1757446374331,5.71,4299.4,4299.3,0.57559024]
[1757446375130,5.71,4299.4,4299.3,0.23649024]
[1757446375529,5.71,4299.4,4299.3,0.55329024]
[1757446377639,5.71,4299.4,4299.3,0.76499024]
[1757446378538,5.71,4299.4,4299.3,0.55329024]
[1757446381634,5.71,4299.4,4299.3,0.99729024]
[1757446384937,5.71,4299.4,4299.3,2.66273171]
[1757446390442,5.71,4299.4,4299.3,0.99729024]
[1757446393546,5.71,4299.4,4299.3,5.22988024]
[1757446393747,5.71,4299.4,4299.3,6.62048024]
[1757446394044,5.71,4299.4,4299.3,11.42048024]
[1757446394847,5.71,4299.4,4299.3,11.18789024]
[1757446395349,3.2078,4300.4,4299.3,10.87109024]
[1757446395544,8.1778,4300.4,4300.1,0.3168]
[1757446395845,8.1778,4300.4,4300.3,0.3168]
[1757446396046,8.87428466,4300.4,4300.3,0.3168]
[1757446397447,8.87428466,4300.4,4300.3,0.233]
[1757446398439,8.87428466,4300.4,4299.9,0.3333]
[1757446398440,12.87428466,4300.4,4299.9,0.3333]
[1757446398648,0.69646403,4300.3,4300.0,0.233]
[1757446398848,0.55909644,4300.2,4299.9,0.233]
[1757446399041,4.67,4300.2,4299.4,0.3333]
[1757446399244,4.67,4300.2,4299.5,0.233]
[1757446399747,4.903,4300.2,4299.5,0.233]
[1757446400344,4.903,4300.2,4299.6,0.3333]
[1757446401349,0.13738155,4300.1,4299.7,0.3333]
[1757446401646,4.96,4300.1,4299.7,0.3333]
[1757446403045,4.96,4300.1,4299.5,0.3603]
[1757446403749,4.96,4300.1,4299.6,0.3333]
[1757446404351,4.96,4300.1,4299.5,0.3603]
[1757446404752,4.96,4300.1,4299.7,0.3333]
[1757446404955,4.96,4300.1,4299.8,0.28394029]
[1757446405158,4.96,4300.1,4299.9,0.28394029]
[1757446405452,4.96,4300.1,4300.0,0.28394029]
[1757446405656,5.09739756,4300.1,4300.0,0.28394029]
[1757446409551,5.09739756,4300.1,4300.0,0.61724029]
[1757446409750,5.09739756,4300.1,4300.0,0.74454029]
[1757446410556,5.09739756,4300.1,4300.0,0.28394029]
[1757446410758,5.09744258,4300.1,4300.0,0.28418209]
[1757446413058,5.65493135,4300.1,4300.0,0.28418209]
[1757446416355,5.65493135,4300.1,4300.0,0.61748209]
[1757446417656,5.88793135,4300.1,4300.0,0.61748209]
[1757446418266,5.88798665,4300.1,4300.0,0.61756769]
[1757446419166,5.65498665,4300.1,4300.0,0.95946769]
[1757446421462,5.65498665,4300.1,4300.0,1.18546769]
[1757446422162,5.65496949,4300.1,4300.0,1.18546769]
[1757446423968,5.65496949,4300.1,4300.0,0.95946769]
[1757446424163,5.65496949,4300.1,4300.0,0.74486769]
[1757446428069,5.65496949,4300.1,4300.0,0.95946769]
[1757446431176,5.65496949,4300.1,4300.0,0.74486769]
[1757446432481,5.65496949,4300.1,4300.0,0.95446769]
[1757446433076,5.65496949,4300.1,4300.0,1.16496769]
[1757446433376,5.65665627,4300.1,4300.0,1.16496769]
[1757446436087,5.65665627,4300.1,4300.0,0.74486769]
[1757446440185,5.65665627,4300.1,4300.0,0.95446769]
[1757446441888,5.65665627,4300.1,4300.0,0.74486769]
[1757446443378,5.65665627,4300.1,4300.0,0.61756769]
[1757446444080,9.88921628,4300.1,4299.3,1.71639024]
[1757446444273,3.2078,4299.4,4299.3,1.71639024]
[1757446444480,9.32745627,4299.4,4299.3,1.71639024]
[1757446444782,9.32745627,4299.4,4299.3,1.39409024]
[1757446444983,9.32745627,4299.4,4299.3,1.71639024]
[1757446446684,9.09445627,4299.4,4299.3,1.71639024]
[1757446446885,9.32745627,4299.4,4299.3,1.71639024]
[1757446447280,9.32745627,4299.4,4299.3,1.92599024]
[1757446449789,8.7699675,4299.4,4299.3,2.13649024]
[1757446449987,5.19,4299.4,4299.3,6.36908024]
[1757446450491,5.19,4299.4,4299.3,6.78773024]
[1757446451388,5.19,4299.4,4299.3,6.55514024]
[1757446456089,5.19,4299.4,4299.3,6.86032286]
[1757446458292,5.19,4299.4,4299.3,6.86030643]
[1757446460498,5.19,4299.4,4299.3,6.44165643]
[1757446460800,5.19,4299.4,4299.3,6.86030643]
[1757446461690,5.19,4299.4,4299.3,6.44165643]
[1757446462999,5.19,4299.4,4299.3,6.86030643]
[1757446463193,5.19,4299.4,4299.3,7.09330643]
[1757446463498,5.19,4299.4,4299.3,6.67465643]
[1757446464200,5.19,4299.4,4299.3,7.09330643]
[1757446464901,5.19,4299.4,4299.3,6.67465643]
[1757446473206,5.19,4299.4,4299.3,6.67307382]
[1757446478204,5.19,4299.4,4299.3,2.67307382]
[1757446483015,5.19,4299.4,4299.3,2.44007382]
[1757446483208,5.19,4299.4,4299.3,2.67307382]
[1757446488422,5.19,4299.4,4299.3,4.33592638]
[1757446501241,5.19,4299.4,4299.3,4.10292638]
[1757446501539,5.19,4299.4,4299.3,4.33592638]
[1757446504138,5.19,4299.4,4299.3,2.67307382]
[1757446505543,5.19,4299.4,4299.3,2.36949024]
[1757446505735,5.19,4299.4,4299.3,2.70024581]
[1757446509141,5.19,4299.4,4299.3,2.46724581]
[1757446509342,5.19,4299.4,4299.3,2.70024581]
[1757446516650,5.19,4299.4,4299.3,3.71101979]
[1757446516853,5.19,4299.4,4299.3,3.94401979]
[1757446517151,5.19,4299.4,4299.3,2.28014581]
[1757446517847,5.19,4299.4,4299.3,1.95784581]
[1757446518044,5.42259,4299.4,4299.3,1.95784581]
[1757446518654,5.42259,4299.4,4299.3,2.27844581]
[1757446518858,5.19,4299.4,4299.3,2.27844581]
[1757446525463,5.19,4299.4,4299.3,2.04544581]
[1757446525761,5.19,4299.4,4299.3,2.27844581]
[1757446528165,5.19,4299.4,4299.3,2.23100994]
[1757446531971,5.19,4299.4,4299.3,2.23101074]
[1757446536061,5.19,4299.4,4299.3,2.43921074]
[1757446537868,5.19,4299.4,4299.3,2.65351074]
[1757446540468,5.19,4299.4,4299.3,6.27996074]
[1757446542073,5.19,4299.4,4299.3,11.07996074]
[1757446548872,5.19,4299.4,4299.3,15.07996074]
[1757446549072,2.55211307,4299.4,4299.3,15.31255074]
[1757446549376,0.127,4300.5,4299.3,15.31255074]
[1757446549377,0.3196,4300.2,4300.1,0.41857]
[1757446549571,0.3196,4300.2,4300.1,8.1426905]
[1757446549572,4.7696,4300.2,4300.1,8.1426905]
[1757446549877,4.45,4300.2,4300.1,8.5243905]
[1757446550080,4.45,4300.2,4300.1,13.3243905]
[1757446551173,4.0813,4300.2,4300.1,13.3243905]
[1757446551680,4.4009,4300.2,4300.1,13.3243905]
[1757446551976,4.4009,4300.2,4300.1,13.32341598]
[1757446553171,4.4009,4300.2,4300.1,13.5508763]
[1757446554982,4.4009,4300.2,4300.1,13.26853032]
[1757446555181,4.6125,4300.2,4300.1,13.26853032]
[1757446555386,4.6125,4300.2,4300.1,14.92306972]
[1757446556084,4.8258,4300.2,4300.1,10.1861394]
[1757446556278,4.8258,4300.2,4300.1,8.5316]
[1757446556483,4.8258,4300.2,4300.1,8.95017]
[1757446558588,2.71777301,4300.2,4300.1,9.04107]
[1757446558786,2.71777301,4300.2,4300.1,10.92437189]
[1757446559082,0.3386,4300.5,4300.4,0.70934]
[1757446559282,5.1286,4300.5,4300.4,0.5238]
[1757446559484,5.6615,4300.5,4300.4,0.5238]
[1757446559677,5.6615,4300.5,4300.4,5.3238]
[1757446560081,5.6615,4300.5,4300.4,5.033]
[1757446560282,5.6615,4300.5,4300.4,0.233]
[1757446560585,5.6615,4300.5,4300.4,0.3784]
[1757446560885,0.7445,4300.2,4300.1,3.2078]
[1757446561074,5.9549,4300.2,4300.1,0.233]
[1757446561274,6.2745,4300.2,4300.1,0.233]
[1757446562085,6.2745,4300.2,4300.1,3.5862]
[1757446562288,6.2745,4300.2,4300.1,3.4408]
[1757446565487,6.2745,4300.2,4300.1,3.7316]
[1757446567489,5.53,4300.2,4300.1,8.24107]
[1757446567687,5.53,4300.2,4300.1,9.8956094]
[1757446567989,5.53,4300.2,4300.1,14.6956094]
[1757446568496,5.8496,4300.2,4300.1,14.6956094]
[1757446568987,6.0612,4300.2,4300.1,14.2770394]
[1757446569287,6.0612,4300.2,4300.1,12.6225]
[1757446569591,6.0612,4300.2,4300.1,13.04107]
[1757446573197,5.8496,4300.2,4300.1,13.04107]
[1757446574290,6.0612,4300.2,4300.1,12.71717]
[1757446574496,6.0612,4300.2,4300.1,12.95017]
[1757446574696,6.0612,4300.2,4300.1,13.04107]
[1757446575497,6.0612,4300.2,4300.1,12.6225]
[1757446575796,6.0612,4300.2,4300.1,13.04107]
[1757446578895,5.8496,4300.2,4300.1,13.04107]
[1757446581206,1.0096,4300.2,4300.1,13.04107]
[1757446581703,1.0096,4300.2,4300.1,15.11520813]
[1757446582601,0.07858,4300.2,4300.1,15.11520813]
[1757446583205,0.07858,4300.2,4300.1,11.11520813]
[1757446583708,0.07858,4300.2,4300.1,9.04107]
[1757446584094,0.127,4301.0,4300.1,9.04107]
[1757446584398,0.2225,4300.9,4300.8,3.9487]
[1757446584598,0.2225,4300.9,4300.8,4.1817]
[1757446584599,5.2885,4300.9,4300.8,4.1817]
[1757446584893,5.6008,4300.9,4300.8,3.72380593]
[1757446585098,5.6008,4300.9,4300.8,8.52380593]
[1757446585903,5.6008,4300.9,4300.8,3.49080593]
[1757446586206,5.6008,4300.9,4300.8,3.72380593]
[1757446586406,5.6008,4300.9,4300.8,5.38340821]
[1757446586801,5.6008,4300.9,4300.8,5.38334568]
[1757446588505,5.6008,4300.9,4300.8,5.15034568]
[1757446588710,9.6008,4300.9,4300.8,3.7237434]
[1757446590111,5.6008,4300.9,4300.8,3.9326434]
[1757446590304,5.6008,4300.9,4300.8,4.4646434]
[1757446590504,5.6008,4300.9,4300.8,4.46455749]
[1757446591010,5.6008,4300.9,4300.8,3.93255749]
[1757446591213,5.6008,4300.9,4300.8,4.11989951]
[1757446591407,5.6008,4300.9,4300.8,4.27005749]
[1757446591706,5.6008,4300.9,4300.8,3.72365749]
[1757446593305,5.6008,4300.9,4300.8,3.49065749]
[1757446593507,5.6008,4300.9,4300.8,3.72365749]
[1757446593508,9.6008,4300.9,4300.8,3.72365749]
[1757446595413,9.0193,4300.9,4300.8,4.06115749]
[1757446596509,9.0193,4300.9,4300.8,3.72365749]
[1757446596712,9.0193,4300.9,4300.8,4.27005749]
[1757446599309,5.0193,4300.9,4300.8,3.72365749]
[1757446601411,5.0193,4300.9,4300.8,4.06115749]
[1757446601917,5.0193,4300.9,4300.8,3.49065749]
[1757446602111,5.0193,4300.9,4300.8,3.72365749]
[1757446602313,5.0193,4300.9,4300.8,4.06115749]
[1757446603421,5.0193,4300.9,4300.8,3.89460908]
[1757446604111,5.0193,4300.9,4300.8,4.23210908]
[1757446605218,5.0193,4300.9,4300.8,4.44100908]
[1757446605615,5.0193,4300.9,4300.8,4.45280846]
[1757446607316,5.0193,4300.9,4300.8,4.64730846]
[1757446612422,5.0193,4300.9,4300.8,4.45280846]
[1757446613022,5.0193,4300.9,4300.8,4.45290417]
[1757446614728,5.0193,4300.9,4300.8,4.66290417]
[1757446615823,5.0193,4300.9,4300.8,3.67350417]
[1757446616030,5.0193,4300.9,4300.8,4.66910417]
[1757446616831,4.707,4300.9,4300.8,4.66910417]
[1757446617827,5.0269,4300.9,4300.8,4.66910417]
[1757446620531,5.0269,4300.9,4300.8,4.66916776]
[1757446621231,5.0269,4300.9,4300.8,6.33118794]
[1757446621534,4.2885,4300.9,4300.8,6.33118794]
[1757446623430,4.4961,4300.9,4300.8,6.33118794]
[1757446623637,5.0423,4300.9,4300.8,6.33118794]
[1757446624931,5.0423,4300.9,4300.8,6.12118794]
[1757446625137,5.0423,4300.9,4300.8,5.56858794]
[1757446625436,5.0423,4300.9,4300.8,4.24396776]
[1757446625638,5.0423,4300.9,4300.8,5.90598794]
[1757446625936,5.0423,4300.9,4300.8,4.24396776]
[1757446626633,5.0423,4300.9,4300.8,0.12186776]
[1757446626935,9.27720051,4300.9,4300.8,0.64921394]
[1757446627132,9.51020051,4300.9,4300.8,0.1712673]
[1757446627431,9.51020051,4300.9,4300.6,0.233]
[1757446627637,8.9554,4300.9,4300.6,0.233]
[1757446627833,8.5215,4300.9,4300.7,0.3374]
[1757446628034,0.23252,4300.8,4300.0,33.618]
[1757446628338,3.2078,4300.7,4300.1,0.5704]
[1757446628538,7.9078,4300.7,4300.1,0.5704]
[1757446628836,7.9078,4300.7,4300.2,0.3374]
[1757446629033,7.9078,4300.7,4300.3,0.5704]
[1757446629228,7.9078,4300.7,4300.3,0.4482]
[1757446629433,7.9078,4300.7,4300.4,0.3374]
[1757446629738,7.9078,4300.7,4300.6,0.3374]
[1757446636938,7.9078,4300.7,4300.5,0.233]
[1757446638144,7.9078,4300.7,4300.6,0.3178431]
[1757446638643,7.9078,4300.7,4300.6,0.63076937]
[1757446639540,7.9078,4300.7,4300.6,0.94816937]
[1757446643350,7.9078,4300.7,4300.6,0.63076937]
[1757446644844,0.23253,4300.6,4300.0,0.1248]
[1757446645042,3.2078,4300.1,4300.0,0.1248]
[1757446645243,8.2678,4300.1,4300.0,0.1248]
[1757446647952,8.2678,4300.1,4299.5,0.233]
[1757446648153,0.233,4300.0,4299.5,0.233]
[1757446648358,4.893,4300.0,4299.5,0.233]
[1757446651353,3.2078,4299.6,4299.5,0.233]
[1757446651559,7.8878,4299.6,4299.5,0.233]
[1757446652150,7.8878,4299.6,4299.3,1.39409024]
[1757446656954,7.8878,4299.6,4299.4,0.61876319]
[1757446657152,7.8878,4299.6,4299.5,0.61876319]
[1757446660458,7.8878,4299.6,4299.5,0.61901071]
[1757446661259,7.8878,4299.6,4299.5,0.33302146]
[1757446662262,7.8878,4299.6,4299.5,0.63737392]
[1757446663358,7.73654458,4299.6,4299.5,0.63737392]
[1757446664061,7.73654458,4299.6,4299.3,1.39409024]
[1757446664264,7.73654458,4299.6,4299.4,0.65279068]
[1757446664565,7.73654458,4299.6,4299.5,0.65279068]
[1757446668461,7.73654458,4299.6,4299.5,0.34842017]
[1757446670254,7.96954458,4299.6,4299.5,0.34842017]
[1757446670457,12.75742707,4299.6,4299.5,0.34842017]
[1757446670765,12.75742707,4299.6,4299.3,1.39409024]
[1757446670964,0.55530249,4299.5,4299.3,1.39409024]
[1757446671262,0.233,4299.4,4299.3,1.39409024]
[1757446671462,6.00830249,4299.4,4299.3,1.39409024]
[1757446674761,5.77530249,4299.4,4298.0,0.233]
[1757446674965,3.2078,4298.6,4298.0,0.233]
[1757446675164,8.7778,4298.6,4298.0,0.233]
[1757446675559,8.7778,4298.6,4297.9,1.66202018]
[1757446675864,8.7778,4298.6,4298.0,0.234]
[1757446687272,8.7778,4298.6,4297.9,0.234]
[1757446687467,9.0118,4298.6,4297.3,4.86982018]
[1757446687667,3.2078,4298.1,4297.4,0.234]
[1757446687968,8.3178,4298.1,4297.4,0.234]
[1757446689372,8.3178,4298.1,4297.5,0.31949259]
[1757446689671,8.3178,4298.1,4297.6,0.31949259]
[1757446689870,8.3178,4298.1,4297.7,0.31949259]
[1757446690071,8.3178,4298.1,4297.8,0.31949259]
[1757446690272,8.3178,4298.1,4297.9,0.31949259]
[1757446690472,8.3178,4298.1,4298.0,0.31949259]
[1757446694570,8.3178,4298.1,4298.0,0.61624714]
[1757446696583,8.3178,4298.1,4298.0,0.61632302]
[1757446707985,9.0742,4298.1,4298.0,1.28102302]
[1757446708389,9.0742,4298.1,4298.0,1.48852302]
[1757446710089,8.7629,4298.1,4298.0,1.48852302]
[1757446710383,8.5372,4298.1,4298.0,1.48852302]
[1757446710581,5.11,4298.1,4298.0,5.72118302]
[1757446710787,5.11,4298.1,4298.0,5.48852302]
[1757446711389,5.11,4298.1,4298.0,6.14169618]
[1757446711686,4.88306877,4298.1,4298.0,7.80505636]
[1757446713589,4.88306877,4298.1,4298.0,7.38629636]
[1757446715190,4.88306877,4298.1,4298.0,7.14192236]
[1757446715392,4.88306877,4298.1,4298.0,7.37592236]
[1757446716391,5.10246877,4298.1,4298.0,3.14192236]
[1757446716596,5.10246877,4298.1,4298.0,1.71390218]
[1757446716888,4.88306877,4298.1,4298.0,1.71390218]
[1757446719301,4.88306877,4298.1,4298.0,1.71383526]
[1757446725108,5.10246877,4298.1,4298.0,1.71383526]
[1757446726501,5.10246877,4298.1,4298.0,1.7356535]
[1757446730308,5.10246877,4298.1,4298.0,1.73533997]
[1757446733614,5.30566877,4298.1,4298.0,1.73533997]
[1757446734315,5.30566877,4298.1,4298.0,3.39736015]
[1757446735019,5.60726877,4298.1,4298.0,3.39736015]
[1757446735617,5.60726877,4298.1,4298.0,1.73533997]
[1757446735815,9.60726877,4298.1,4298.0,0.62913997]
[1757446736006,9.60726877,4298.1,4298.0,0.56153997]
[1757446742923,5.60726877,4298.1,4298.0,0.56153997]
[1757446743118,5.60726877,4298.1,4298.0,0.32753997]
[1757446746715,9.84126877,4298.1,4298.0,0.32753997]
[1757446750621,10.51407232,4298.1,4297.1,0.3114]
[1757446750827,3.2078,4297.2,4297.1,0.3114]
[1757446751021,8.2878,4297.2,4297.1,0.3114]
[1757446754923,5.08,4297.2,4297.1,0.7292]
[1757446756828,5.08,4297.2,4297.1,5.14805]
[1757446757433,5.08,4297.2,4297.1,6.81007018]
[1757446757733,3.6396,4298.7,4298.6,0.5085]
[1757446757928,5.8596,4298.7,4298.6,0.5085]
[1757446758123,9.3196,4298.7,4298.6,0.5085]
[1757446758327,9.6428,4298.7,4298.6,0.5085]
[1757446759430,0.1265,4298.5,4298.4,0.234]
[1757446759629,6.5715,4298.5,4298.4,0.234]
[1757446760838,0.755,4297.4,4297.3,3.93]
[1757446761037,6.275,4297.4,4297.3,4.164]
[1757446762636,6.275,4297.4,4297.3,4.7751346]
[1757446763334,6.275,4297.4,4297.3,8.7751346]
[1757446763335,5.52,4297.4,4297.3,8.7751346]
[1757446764430,5.7354,4297.4,4297.3,10.20448697]
[1757446764633,6.275,4297.4,4297.3,4.7751346]
[1757446764842,6.275,4297.4,4297.3,1.5673346]
[1757446765236,6.275,4297.4,4297.3,0.8451346]
[1757446765440,6.275,4297.4,4297.3,0.6111346]
[1757446765638,6.275,4297.4,4297.3,0.8451346]
[1757446767042,6.275,4297.4,4297.3,0.6111346]
[1757446767344,6.275,4297.4,4297.3,0.8451346]
[1757446767942,6.275,4297.4,4297.3,0.6111346]
[1757446768239,6.275,4297.4,4297.3,0.8451346]
[1757446773744,6.275,4297.4,4297.3,0.52907814]
[1757446777347,6.275,4297.4,4297.3,1.03757814]
[1757446778737,6.275,4297.4,4297.3,0.52907814]
[1757446780644,6.275,4297.4,4297.3,1.03757814]
[1757446781445,6.275,4297.4,4297.3,1.25127814]
[1757446786247,6.275,4297.4,4297.3,0.52907814]
[1757446786552,0.755,4296.9,4296.8,33.505]
[1757446786848,6.335,4296.9,4296.8,33.739]
[1757446787046,6.335,4296.9,4296.8,34.0703]
[1757446789951,6.335,4296.9,4296.8,0.793]
[1757446790352,6.335,4296.9,4296.8,2.45635237]
[1757446791751,6.335,4296.9,4296.8,2.68325237]
[1757446795357,6.335,4296.9,4296.8,1.0199]
[1757446795652,6.335,4296.9,4296.8,0.234]
[1757446796259,6.335,4296.9,4296.8,0.793]
[1757446797958,6.335,4296.9,4296.8,2.46238948]
[1757446799260,6.335,4296.9,4296.8,1.90338948]
[1757446799761,6.335,4296.9,4296.8,1.66938948]
[1757446799961,6.335,4296.9,4296.8,1.90338948]
[1757446800258,6.335,4296.9,4296.8,1.66938948]
[1757446800559,6.335,4296.9,4296.8,0.234]
[1757446800756,0.7499,4296.8,4296.7,1.66938948]
[1757446800952,5.4099,4296.8,4296.7,2.46238948]
[1757446801152,5.4099,4296.8,4296.7,1.90338948]
[1757446802255,5.4099,4296.8,4296.7,0.234]